[Event "Early-Titled-Tuesday-Blitz-March-05-2024"]
[Site "Chess.com"]
[Date "2024.03.05"]
[Round "2"]
[White "Shahdad2007"]
[Black "MyDream003"]
[Result "1-0"]
[WhiteElo "2546"]
[BlackElo "2758"]
[TimeControl "180+1"]
[EndTime "8:23:46 PST"]
[Termination "Shahdad2007 won on time"]

1. Nf3 {[%clk 0:03:00.9]} 1... d5 {[%clk 0:02:57.8]} 2. c4 {[%clk 0:02:59.3]}
2... e6 {[%clk 0:02:55.9]} 3. g3 {[%clk 0:02:58.3]} 3... g6 {[%clk 0:02:53]} 4.
Bg2 {[%clk 0:02:57.6]} 4... Bg7 {[%clk 0:02:52.9]} 5. O-O {[%clk 0:02:56.5]}
5... Ne7 {[%clk 0:02:52.1]} 6. d4 {[%clk 0:02:55.6]} 6... O-O {[%clk 0:02:50.6]}
7. Nc3 {[%clk 0:02:53.9]} 7... Nbc6 {[%clk 0:02:46.7]} 8. e3 {[%clk 0:02:52.7]}
8... b6 {[%clk 0:02:40.4]} 9. cxd5 {[%clk 0:02:44.8]} 9... exd5 {[%clk
0:02:40.2]} 10. a3 {[%clk 0:02:40.1]} 10... Bb7 {[%clk 0:02:28.7]} 11. b4 {[%clk
0:02:38.3]} 11... a6 {[%clk 0:02:28.4]} 12. Qb3 {[%clk 0:02:36]} 12... Na7
{[%clk 0:02:21.9]} 13. a4 {[%clk 0:02:34.4]} 13... Nac8 {[%clk 0:02:21.6]} 14.
Ba3 {[%clk 0:02:29.4]} 14... Nd6 {[%clk 0:02:20.8]} 15. Ne5 {[%clk 0:02:16.3]}
15... c6 {[%clk 0:02:17.7]} 16. b5 {[%clk 0:02:15.4]} 16... axb5 {[%clk
0:01:49.4]} 17. axb5 {[%clk 0:02:14.9]} 17... Nxb5 {[%clk 0:01:50]} 18. Nxb5
{[%clk 0:02:13.4]} 18... cxb5 {[%clk 0:01:49.6]} 19. Qxb5 {[%clk 0:02:06.6]}
19... Ba6 {[%clk 0:01:44.8]} 20. Bxe7 {[%clk 0:02:05.3]} 20... Bxb5 {[%clk
0:01:45.1]} 21. Bxd8 {[%clk 0:02:04.9]} 21... Raxd8 {[%clk 0:01:32.5]} 22. Rfb1
{[%clk 0:02:03.6]} 22... Be2 {[%clk 0:01:23.7]} 23. Rxb6 {[%clk 0:02:02.1]}
23... Bxe5 {[%clk 0:01:22.7]} 24. dxe5 {[%clk 0:02:01.3]} 24... d4 {[%clk
0:01:23.6]} 25. exd4 {[%clk 0:02:01.5]} 25... Rxd4 {[%clk 0:01:24.5]} 26. e6
{[%clk 0:01:53.9]} 26... fxe6 {[%clk 0:01:23.8]} 27. Rxe6 {[%clk 0:01:54.3]}
27... Rd1+ {[%clk 0:01:18.7]} 28. Rxd1 {[%clk 0:01:52.8]} 28... Bxd1 {[%clk
0:01:19.6]} 29. Bd5 {[%clk 0:01:53.3]} 29... Kh8 {[%clk 0:01:19.4]} 30. Re7
{[%clk 0:01:52.3]} 30... Bf3 {[%clk 0:01:16]} 31. Bxf3 {[%clk 0:01:34.5]} 31...
Rxf3 {[%clk 0:01:16.9]} 32. Kg2 {[%clk 0:01:34.9]} 32... Ra3 {[%clk 0:01:13.5]}
33. g4 {[%clk 0:01:35]} 33... Kg8 {[%clk 0:01:10.9]} 34. f3 {[%clk 0:01:34]}
34... Ra4 {[%clk 0:01:10.5]} 35. Kg3 {[%clk 0:01:33.8]} 35... Rb4 {[%clk
0:01:06.8]} 36. Re4 {[%clk 0:01:32.5]} 36... Rb3 {[%clk 0:01:04.7]} 37. Ra4
{[%clk 0:01:32.2]} 37... Kg7 {[%clk 0:01:02.8]} 38. Kf4 {[%clk 0:01:31]} 38...
Rb7 {[%clk 0:01:00.2]} 39. h4 {[%clk 0:01:30.2]} 39... Rf7+ {[%clk 0:01:00.8]}
40. Kg3 {[%clk 0:01:29.3]} 40... Rb7 {[%clk 0:01:01.1]} 41. Rc4 {[%clk
0:01:25.3]} 41... Ra7 {[%clk 0:01:01.1]} 42. Kf4 {[%clk 0:01:18.2]} 42... Rf7+
{[%clk 0:01:01.2]} 43. Ke3 {[%clk 0:01:18.6]} 43... Re7+ {[%clk 0:01:01.3]} 44.
Re4 {[%clk 0:01:18.2]} 44... Ra7 {[%clk 0:01:02.2]} 45. Re5 {[%clk 0:01:18.1]}
45... Ra3+ {[%clk 0:01:02]} 46. Kf4 {[%clk 0:01:18]} 46... Ra4+ {[%clk
0:01:02.3]} 47. Re4 {[%clk 0:01:16.4]} 47... Ra7 {[%clk 0:01:02.5]} 48. Rb4
{[%clk 0:01:11.8]} 48... Rf7+ {[%clk 0:00:59.2]} 49. Kg3 {[%clk 0:00:52.5]}
49... Ra7 {[%clk 0:00:58.1]} 50. h5 {[%clk 0:00:53.1]} 50... g5 {[%clk
0:00:47.2]} 51. Rb5 {[%clk 0:00:52.3]} 51... h6 {[%clk 0:00:47.4]} 52. Rb6
{[%clk 0:00:52.9]} 52... Kh7 {[%clk 0:00:44.4]} 53. Kf2 {[%clk 0:00:51.9]} 53...
Re7 {[%clk 0:00:44.6]} 54. Rf6 {[%clk 0:00:50.9]} 54... Kg7 {[%clk 0:00:45]} 55.
Rf5 {[%clk 0:00:50.8]} 55... Kh7 {[%clk 0:00:44.5]} 56. Ra5 {[%clk 0:00:49.5]}
56... Kg7 {[%clk 0:00:44.9]} 57. Ra4 {[%clk 0:00:50.1]} 57... Kh7 {[%clk
0:00:44.1]} 58. Re4 {[%clk 0:00:50.5]} 58... Ra7 {[%clk 0:00:44.6]} 59. Re3
{[%clk 0:00:50.2]} 59... Ra2+ {[%clk 0:00:44.5]} 60. Kg3 {[%clk 0:00:50.6]}
60... Ra7 {[%clk 0:00:44.7]} 61. Re5 {[%clk 0:00:48]} 61... Kg7 {[%clk
0:00:45.2]} 62. Kf2 {[%clk 0:00:47]} 62... Ra2+ {[%clk 0:00:44.8]} 63. Ke3
{[%clk 0:00:47]} 63... Ra7 {[%clk 0:00:45.7]} 64. Ke4 {[%clk 0:00:47.1]} 64...
Ra4+ {[%clk 0:00:42.7]} 65. Kd5 {[%clk 0:00:43.5]} 65... Ra5+ {[%clk 0:00:42.9]}
66. Ke6 {[%clk 0:00:43.1]} 66... Ra6+ {[%clk 0:00:43.2]} 67. Kf5 {[%clk
0:00:40.5]} 67... Rf6+ {[%clk 0:00:42.1]} 68. Ke4 {[%clk 0:00:41]} 68... Rf4+
{[%clk 0:00:43]} 69. Ke3 {[%clk 0:00:41.4]} 69... Rf7 {[%clk 0:00:41.8]} 70. Re6
{[%clk 0:00:41.2]} 70... Ra7 {[%clk 0:00:41.2]} 71. Ke4 {[%clk 0:00:40.9]} 71...
Ra4+ {[%clk 0:00:41.1]} 72. Ke5 {[%clk 0:00:37.4]} 72... Ra5+ {[%clk 0:00:41.3]}
73. Ke4 {[%clk 0:00:36.8]} 73... Ra4+ {[%clk 0:00:41.6]} 74. Ke3 {[%clk
0:00:37.4]} 74... Ra3+ {[%clk 0:00:41.9]} 75. Kf2 {[%clk 0:00:37.9]} 75... Ra2+
{[%clk 0:00:42.4]} 76. Kg3 {[%clk 0:00:38.2]} 76... Ra7 {[%clk 0:00:43.3]} 77.
Re3 {[%clk 0:00:37.5]} 77... Rf7 {[%clk 0:00:42.5]} 78. Re4 {[%clk 0:00:38.1]}
78... Ra7 {[%clk 0:00:42.7]} 79. f4 {[%clk 0:00:38.3]} 79... gxf4+ {[%clk
0:00:39.3]} 80. Kxf4 {[%clk 0:00:39.2]} 80... Rb7 {[%clk 0:00:35.5]} 81. Rd4
{[%clk 0:00:38.9]} 81... Ra7 {[%clk 0:00:35.6]} 82. Rd5 {[%clk 0:00:38.6]} 82...
Rf7+ {[%clk 0:00:34.8]} 83. Ke5 {[%clk 0:00:38.5]} 83... Ra7 {[%clk 0:00:35.7]}
84. Rd6 {[%clk 0:00:37]} 84... Ra5+ {[%clk 0:00:28.7]} 85. Ke6 {[%clk
0:00:37.4]} 85... Rg5 {[%clk 0:00:24.8]} 86. Rd7+ {[%clk 0:00:37.2]} 86... Kg8
{[%clk 0:00:24.8]} 87. Rd4 {[%clk 0:00:30]} 87... Kg7 {[%clk 0:00:24.6]} 88. Ra4
{[%clk 0:00:30]} 88... Kg8 {[%clk 0:00:24.7]} 89. Kf6 {[%clk 0:00:29.9]} 89...
Kh7 {[%clk 0:00:21.1]} 90. Re4 {[%clk 0:00:22.1]} 90... Kh8 {[%clk 0:00:19.6]}
91. Kf7 {[%clk 0:00:22.3]} 91... Kh7 {[%clk 0:00:18.2]} 92. Kf8 {[%clk
0:00:21.8]} 92... Kh8 {[%clk 0:00:13.7]} 93. Rd4 {[%clk 0:00:22]} 93... Kh7
{[%clk 0:00:13.7]} 94. Rc4 {[%clk 0:00:22.6]} 94... Kh8 {[%clk 0:00:13.8]} 95.
Re4 {[%clk 0:00:23.2]} 95... Kh7 {[%clk 0:00:14.3]} 96. Kf7 {[%clk 0:00:23.8]}
96... Kh8 {[%clk 0:00:14.3]} 97. Re6 {[%clk 0:00:24.4]} 97... Kh7 {[%clk
0:00:10.5]} 98. Rg6 {[%clk 0:00:25]} 98... Ra5 {[%clk 0:00:10.8]} 99. Rg7+
{[%clk 0:00:25.2]} 99... Kh8 {[%clk 0:00:11.3]} 100. Rg8+ {[%clk 0:00:25.2]}
100... Kh7 {[%clk 0:00:11.8]} 101. Re8 {[%clk 0:00:25.2]} 101... Ra7+ {[%clk
0:00:11.6]} 102. Re7 {[%clk 0:00:25]} 102... Ra5 {[%clk 0:00:11.1]} 103. Kf6+
{[%clk 0:00:24.6]} 103... Kh8 {[%clk 0:00:11.7]} 104. Kg6 {[%clk 0:00:24.2]}
104... Ra6+ {[%clk 0:00:12.1]} 105. Kf5 {[%clk 0:00:22.6]} 105... Ra5+ {[%clk
0:00:12.1]} 106. Re5 {[%clk 0:00:22]} 106... Ra7 {[%clk 0:00:07]} 107. Kf6
{[%clk 0:00:21.1]} 107... Ra6+ {[%clk 0:00:03.2]} 108. Re6 {[%clk 0:00:21.3]}
108... Ra5 {[%clk 0:00:02.3]} 109. Re8+ {[%clk 0:00:19.2]} 109... Kh7 {[%clk
0:00:02.5]} 110. Re7+ {[%clk 0:00:19.7]} 110... Kg8 {[%clk 0:00:03]} 111. Re5
{[%clk 0:00:18.3]} 111... Ra6+ {[%clk 0:00:03.2]} 112. Re6 {[%clk 0:00:18.9]}
112... Ra5 {[%clk 0:00:03.7]} 113. Kg6 {[%clk 0:00:18.4]} 113... Rg5+ {[%clk
0:00:03.8]} 114. Kxh6 {[%clk 0:00:18.9]} 114... Rxg4 {[%clk 0:00:04]} 115. Rf6
{[%clk 0:00:18.1]} 115... Rh4 {[%clk 0:00:04.2]} 116. Rg6+ {[%clk 0:00:17.7]}
116... Kh8 {[%clk 0:00:04.6]} 117. Ra6 {[%clk 0:00:18.6]} 117... Kg8 {[%clk
0:00:05.2]} 118. Ra8+ {[%clk 0:00:18.2]} 118... Kf7 {[%clk 0:00:05.5]} 119. Ra7+
{[%clk 0:00:18.4]} 119... Kg8 {[%clk 0:00:06]} 120. Ra5 {[%clk 0:00:18.8]}
120... Rh1 {[%clk 0:00:06]} 121. Rg5+ {[%clk 0:00:18.5]} 121... Kh8 {[%clk
0:00:05.8]} 122. Kg6 {[%clk 0:00:18.9]} 122... Kg8 {[%clk 0:00:05.5]} 123. Ra5
{[%clk 0:00:18.7]} 123... Rg1+ {[%clk 0:00:05.6]} 124. Kh6 {[%clk 0:00:19.1]}
124... Rh1 {[%clk 0:00:05.3]} 125. Ra8+ {[%clk 0:00:18.7]} 125... Kf7 {[%clk
0:00:05.6]} 126. Ra7+ {[%clk 0:00:19.2]} 126... Kg8 {[%clk 0:00:06]} 127. Ra5
{[%clk 0:00:18.3]} 127... Kf7 {[%clk 0:00:06.4]} 128. Rg5 {[%clk 0:00:18.7]}
128... Rh2 {[%clk 0:00:06.2]} 129. Kh7 {[%clk 0:00:19.1]} 129... Rh1 {[%clk
0:00:06.2]} 130. h6 {[%clk 0:00:19.7]} 130... Rh2 {[%clk 0:00:06.6]} 131. Rg3
{[%clk 0:00:19.9]} 131... Rh1 {[%clk 0:00:06.8]} 132. Rf3+ {[%clk 0:00:20.3]}
132... Ke7 {[%clk 0:00:07.3]} 133. Kg7 {[%clk 0:00:20.5]} 133... Rg1+ {[%clk
0:00:07.6]} 134. Kh7 {[%clk 0:00:20.6]} 134... Rh1 {[%clk 0:00:07.9]} 135. Rf4
{[%clk 0:00:19.4]} 135... Rh2 {[%clk 0:00:07.9]} 136. Kg7 {[%clk 0:00:19.3]}
136... Rg2+ {[%clk 0:00:08.1]} 137. Kh8 {[%clk 0:00:19.9]} 137... Rh2 {[%clk
0:00:08.1]} 138. h7 {[%clk 0:00:19.9]} 138... Rg2 {[%clk 0:00:07.9]} 139. Ra4
{[%clk 0:00:20.1]} 139... Kf7 {[%clk 0:00:07.6]} 140. Ra8 {[%clk 0:00:20.8]}
140... Rg1 {[%clk 0:00:04.4]} 141. Rg8 {[%clk 0:00:21.2]} 141... Rh1 {[%clk
0:00:04.4]} 142. Rg7+ {[%clk 0:00:21.2]} 142... Kf8 {[%clk 0:00:04.7]} 143. Rg2
{[%clk 0:00:21.8]} 143... Rh3 {[%clk 0:00:04.8]} 144. Rf2+ {[%clk 0:00:22]}
144... Ke7 {[%clk 0:00:05.3]} 145. Rf4 {[%clk 0:00:20.7]} 145... Rh1 {[%clk
0:00:05.4]} 146. Kg7 {[%clk 0:00:19.6]} 146... Rg1+ {[%clk 0:00:05.6]} 147. Kh6
{[%clk 0:00:19.4]} 147... Rh1+ {[%clk 0:00:05.5]} 148. Kg6 {[%clk 0:00:19.6]}
148... Rh2 {[%clk 0:00:03.7]} 149. Rf5 {[%clk 0:00:18]} 149... Rh1 {[%clk
0:00:01.2]} 150. Rh5 {[%clk 0:00:18.1]} 1-0

[Event "Early-Titled-Tuesday-Blitz-March-05-2024"]
[Site "Chess.com"]
[Date "2024.03.05"]
[Round "3"]
[White "Levanzovsky"]
[Black "mfschulz"]
[Result "0-1"]
[WhiteElo "2406"]
[BlackElo "2252"]
[TimeControl "180+1"]
[EndTime "8:26:09 PST"]
[Termination "mfschulz won by resignation"]

1. c4 {[%clk 0:03:00.9]} 1... e5 {[%clk 0:02:57.8]} 2. e3 {[%clk 0:02:59.7]}
2... Nf6 {[%clk 0:02:55.7]} 3. Nc3 {[%clk 0:02:59.1]} 3... d5 {[%clk 0:02:54.4]}
4. cxd5 {[%clk 0:02:58.7]} 4... Nxd5 {[%clk 0:02:54.5]} 5. Nf3 {[%clk
0:02:53.1]} 5... Nc6 {[%clk 0:02:53.3]} 6. Bb5 {[%clk 0:02:51.9]} 6... Nxc3
{[%clk 0:02:49.7]} 7. bxc3 {[%clk 0:02:51.9]} 7... Bd6 {[%clk 0:02:48.6]} 8. d4
{[%clk 0:02:48.6]} 8... exd4 {[%clk 0:02:47.9]} 9. cxd4 {[%clk 0:02:48.5]} 9...
O-O {[%clk 0:02:47.7]} 10. O-O {[%clk 0:02:48.8]} 10... Bg4 {[%clk 0:02:46.7]}
11. h3 {[%clk 0:02:45.1]} 11... Bh5 {[%clk 0:02:46.3]} 12. Bxc6 {[%clk
0:02:43.3]} 12... bxc6 {[%clk 0:02:45.9]} 13. Qc2 {[%clk 0:02:43.4]} 13... Bxf3
{[%clk 0:02:44.7]} 14. gxf3 {[%clk 0:02:44.3]} 14... Qh4 {[%clk 0:02:42.1]} 15.
Qf5 {[%clk 0:02:39.2]} 15... Rab8 {[%clk 0:02:36.1]} 16. Bd2 {[%clk 0:02:36.7]}
16... Rb5 {[%clk 0:02:35.2]} 17. Qd7 {[%clk 0:02:31.5]} 17... Rg5+ {[%clk
0:02:33.2]} 18. Kh1 {[%clk 0:02:31.2]} 18... f5 {[%clk 0:02:29.4]} 0-1

[Event "Early-Titled-Tuesday-Blitz-March-05-2024"]
[Site "Chess.com"]
[Date "2024.03.05"]
[Round "3"]
[White "sokidze"]
[Black "GM4life"]
[Result "1-0"]
[WhiteElo "2778"]
[BlackElo "2473"]
[TimeControl "180+1"]
[EndTime "8:27:12 PST"]
[Termination "sokidze won by resignation"]

1. d4 {[%clk 0:03:00.9]} 1... Nf6 {[%clk 0:03:00.1]} 2. c4 {[%clk 0:03:01.3]}
2... e6 {[%clk 0:03:00.8]} 3. Nf3 {[%clk 0:03:02.1]} 3... d5 {[%clk 0:03:00.5]}
4. g3 {[%clk 0:03:02.8]} 4... Bb4+ {[%clk 0:02:58.5]} 5. Bd2 {[%clk 0:03:02.8]}
5... Be7 {[%clk 0:02:59.1]} 6. Bg2 {[%clk 0:03:03.4]} 6... O-O {[%clk
0:02:58.9]} 7. Qc2 {[%clk 0:03:03.8]} 7... Nbd7 {[%clk 0:02:59.8]} 8. O-O {[%clk
0:03:03.9]} 8... c6 {[%clk 0:03:00.5]} 9. Rc1 {[%clk 0:03:03.5]} 9... a5 {[%clk
0:03:01.1]} 10. a3 {[%clk 0:03:03.1]} 10... Ne4 {[%clk 0:02:57.9]} 11. Nc3
{[%clk 0:02:53.2]} 11... Nxd2 {[%clk 0:02:56.2]} 12. Nxd2 {[%clk 0:02:52.9]}
12... Nb6 {[%clk 0:02:53.4]} 13. e3 {[%clk 0:02:16.2]} 13... h6 {[%clk
0:02:40.8]} 14. Ne2 {[%clk 0:01:55.1]} 14... Bf6 {[%clk 0:02:26.5]} 15. Rd1
{[%clk 0:01:47]} 15... Qe7 {[%clk 0:02:24.1]} 16. Qb3 {[%clk 0:01:33.7]} 16...
Nxc4 {[%clk 0:02:22]} 17. Nxc4 {[%clk 0:01:33.7]} 17... dxc4 {[%clk 0:02:22.9]}
18. Qxc4 {[%clk 0:01:34.6]} 18... e5 {[%clk 0:02:23.6]} 19. d5 {[%clk
0:01:34.6]} 19... Bg4 {[%clk 0:02:15.7]} 20. Qxg4 {[%clk 0:01:34]} 1-0

[Event "Early-Titled-Tuesday-Blitz-March-05-2024"]
[Site "Chess.com"]
[Date "2024.03.05"]
[Round "3"]
[White "SchmakAttack"]
[Black "santosalberto1987"]
[Result "1-0"]
[WhiteElo "2805"]
[BlackElo "2540"]
[TimeControl "180+1"]
[EndTime "8:27:23 PST"]
[Termination "SchmakAttack won by resignation"]

1. Nf3 {[%clk 0:03:00.9]} 1... d5 {[%clk 0:02:39.3]} 2. b3 {[%clk 0:02:59.2]}
2... Bf5 {[%clk 0:02:38.1]} 3. Bb2 {[%clk 0:02:58.8]} 3... Nd7 {[%clk
0:02:38.3]} 4. g3 {[%clk 0:02:57.9]} 4... Ngf6 {[%clk 0:02:38.2]} 5. Bg2 {[%clk
0:02:58.1]} 5... e6 {[%clk 0:02:38.4]} 6. O-O {[%clk 0:02:57.9]} 6... h6 {[%clk
0:02:37.5]} 7. d3 {[%clk 0:02:54.8]} 7... Be7 {[%clk 0:02:36.6]} 8. Nbd2 {[%clk
0:02:55]} 8... c6 {[%clk 0:02:36.8]} 9. Qe1 {[%clk 0:02:34.1]} 9... O-O {[%clk
0:02:35]} 10. e4 {[%clk 0:02:34.5]} 10... dxe4 {[%clk 0:02:34.1]} 11. dxe4
{[%clk 0:02:35.4]} 11... Bh7 {[%clk 0:02:34.6]} 12. Qe2 {[%clk 0:02:35.2]} 12...
a5 {[%clk 0:02:34.9]} 13. a4 {[%clk 0:02:31.9]} 13... Nc5 {[%clk 0:02:34.7]} 14.
e5 {[%clk 0:02:28.2]} 14... Nd5 {[%clk 0:02:31.7]} 15. Nc4 {[%clk 0:02:27]}
15... Qc7 {[%clk 0:02:20.1]} 16. Rfd1 {[%clk 0:02:24.3]} 16... Rfd8 {[%clk
0:02:18.1]} 17. Nd6 {[%clk 0:02:06.3]} 17... Nb4 {[%clk 0:01:58.7]} 18. Rd2
{[%clk 0:01:59.8]} 18... Bxd6 {[%clk 0:01:53.5]} 19. exd6 {[%clk 0:02:00.7]}
19... Rxd6 {[%clk 0:01:53.9]} 20. Qe5 {[%clk 0:02:00.1]} 1-0

[Event "Early-Titled-Tuesday-Blitz-March-05-2024"]
[Site "Chess.com"]
[Date "2024.03.05"]
[Round "3"]
[White "ReadySkate"]
[Black "margarita_2703"]
[Result "1-0"]
[WhiteElo "2583"]
[BlackElo "2398"]
[TimeControl "180+1"]
[EndTime "8:27:24 PST"]
[Termination "ReadySkate won by resignation"]

1. d4 {[%clk 0:03:00.9]} 1... d5 {[%clk 0:02:55.4]} 2. c4 {[%clk 0:03:01.3]}
2... e6 {[%clk 0:02:53.8]} 3. Nc3 {[%clk 0:03:01.7]} 3... Nf6 {[%clk 0:02:52.9]}
4. cxd5 {[%clk 0:03:02.2]} 4... exd5 {[%clk 0:02:49.6]} 5. Bg5 {[%clk
0:03:02.3]} 5... Be7 {[%clk 0:02:49.3]} 6. e3 {[%clk 0:03:02.5]} 6... Nbd7
{[%clk 0:02:38]} 7. Bd3 {[%clk 0:03:02.4]} 7... h6 {[%clk 0:02:38]} 8. Bh4
{[%clk 0:03:02.1]} 8... O-O {[%clk 0:02:37.8]} 9. Nge2 {[%clk 0:03:02.7]} 9...
Re8 {[%clk 0:02:37.8]} 10. O-O {[%clk 0:03:03.1]} 10... c6 {[%clk 0:02:38.3]}
11. f3 {[%clk 0:03:03.1]} 11... Qb6 {[%clk 0:02:26.8]} 12. Qc2 {[%clk 0:03:02]}
12... Bd6 {[%clk 0:02:26.3]} 13. Bf2 {[%clk 0:03:00.7]} 13... Qa5 {[%clk
0:02:23.1]} 14. a3 {[%clk 0:02:57.2]} 14... Nf8 {[%clk 0:02:21.7]} 15. b4 {[%clk
0:02:56.2]} 15... Qc7 {[%clk 0:02:21.8]} 16. h3 {[%clk 0:02:55.2]} 16... a6
{[%clk 0:02:20.6]} 17. Rad1 {[%clk 0:02:54]} 17... Be6 {[%clk 0:02:19.9]} 18. e4
{[%clk 0:02:53.4]} 18... dxe4 {[%clk 0:02:20.8]} 19. fxe4 {[%clk 0:02:54.3]}
19... Be7 {[%clk 0:02:18.1]} 20. Bg3 {[%clk 0:02:52.6]} 20... Qd7 {[%clk
0:02:17.8]} 21. d5 {[%clk 0:02:41.3]} 21... cxd5 {[%clk 0:02:16.2]} 22. exd5
{[%clk 0:02:42.2]} 22... Nxd5 {[%clk 0:02:16.4]} 23. Nxd5 {[%clk 0:02:41.6]}
23... Bxd5 {[%clk 0:02:17.3]} 24. Nf4 {[%clk 0:02:41.2]} 24... Rac8 {[%clk
0:02:10.6]} 25. Qb1 {[%clk 0:02:40.1]} 25... Kh8 {[%clk 0:02:05]} 26. Bf5 {[%clk
0:02:38.2]} 26... Ba2 {[%clk 0:01:40.6]} 27. Bxd7 {[%clk 0:02:31.2]} 27... Bxb1
{[%clk 0:01:40.2]} 28. Bxe8 {[%clk 0:02:25.2]} 28... Bc2 {[%clk 0:01:39.4]} 29.
Rc1 {[%clk 0:02:24.6]} 29... Rxe8 {[%clk 0:01:37.9]} 1-0

[Event "Early-Titled-Tuesday-Blitz-March-05-2024"]
[Site "Chess.com"]
[Date "2024.03.05"]
[Round "3"]
[White "LuisFSiles"]
[Black "Arteler"]
[Result "1-0"]
[WhiteElo "2259"]
[BlackElo "2450"]
[TimeControl "180+1"]
[EndTime "8:27:46 PST"]
[Termination "LuisFSiles won by checkmate"]

1. e4 {[%clk 0:03:00.9]} 1... e6 {[%clk 0:02:56.4]} 2. d4 {[%clk 0:03:00.4]}
2... d5 {[%clk 0:02:56.5]} 3. e5 {[%clk 0:02:59.7]} 3... c5 {[%clk 0:02:54.8]}
4. c3 {[%clk 0:03:00.1]} 4... Qb6 {[%clk 0:02:53.4]} 5. Nf3 {[%clk 0:03:00]}
5... Nc6 {[%clk 0:02:53.2]} 6. Bd3 {[%clk 0:02:59]} 6... Bd7 {[%clk 0:02:49.6]}
7. dxc5 {[%clk 0:02:53]} 7... Bxc5 {[%clk 0:02:44.9]} 8. O-O {[%clk 0:02:53]}
8... Nge7 {[%clk 0:02:43]} 9. b4 {[%clk 0:02:51.8]} 9... Nxb4 {[%clk 0:02:26.1]}
10. cxb4 {[%clk 0:02:48.3]} 10... Bxb4 {[%clk 0:02:27]} 11. Be3 {[%clk
0:02:44.2]} 11... Bc5 {[%clk 0:02:25.8]} 12. Bxc5 {[%clk 0:02:41.3]} 12... Qxc5
{[%clk 0:02:25.7]} 13. Nbd2 {[%clk 0:02:39.9]} 13... O-O {[%clk 0:02:22.4]} 14.
Bxh7+ {[%clk 0:02:11.1]} 14... Kxh7 {[%clk 0:02:20.6]} 15. Ng5+ {[%clk
0:02:11.6]} 15... Kg6 {[%clk 0:02:11.6]} 16. Qg4 {[%clk 0:02:11.6]} 16... Qc6
{[%clk 0:01:12.1]} 17. Nxe6+ {[%clk 0:01:58]} 17... Kh7 {[%clk 0:01:10.7]} 18.
Qxg7# {[%clk 0:01:57.3]} 1-0

[Event "Early-Titled-Tuesday-Blitz-March-05-2024"]
[Site "Chess.com"]
[Date "2024.03.05"]
[Round "3"]
[White "Angel_Hranitel_37"]
[Black "Szparu"]
[Result "0-1"]
[WhiteElo "2509"]
[BlackElo "2772"]
[TimeControl "180+1"]
[EndTime "8:27:48 PST"]
[Termination "Szparu won by resignation"]

1. d4 {[%clk 0:02:58]} 1... Nf6 {[%clk 0:02:59.8]} 2. Nf3 {[%clk 0:02:58.6]}
2... c5 {[%clk 0:02:59.5]} 3. d5 {[%clk 0:02:58.9]} 3... b5 {[%clk 0:02:53.3]}
4. Bg5 {[%clk 0:02:57.3]} 4... Qb6 {[%clk 0:02:52.1]} 5. Bxf6 {[%clk 0:02:57.2]}
5... Qxf6 {[%clk 0:02:52.2]} 6. c3 {[%clk 0:02:57.8]} 6... Qb6 {[%clk
0:02:51.3]} 7. e4 {[%clk 0:02:58.2]} 7... d6 {[%clk 0:02:50.9]} 8. Nbd2 {[%clk
0:02:57.7]} 8... g6 {[%clk 0:02:49.1]} 9. e5 {[%clk 0:02:58.1]} 9... Bg7 {[%clk
0:02:49.2]} 10. a4 {[%clk 0:02:55.9]} 10... b4 {[%clk 0:02:44.9]} 11. Bb5+
{[%clk 0:02:56]} 11... Kf8 {[%clk 0:02:40.9]} 12. Nc4 {[%clk 0:02:53]} 12... Qc7
{[%clk 0:02:41]} 13. e6 {[%clk 0:02:46.8]} 13... a6 {[%clk 0:02:37.9]} 14. exf7
{[%clk 0:02:28.2]} 14... axb5 {[%clk 0:02:37.3]} 15. axb5 {[%clk 0:02:28.1]}
15... Rxa1 {[%clk 0:02:36.8]} 16. Qxa1 {[%clk 0:02:29]} 16... h6 {[%clk
0:02:27.4]} 17. b6 {[%clk 0:02:29.2]} 17... Qb7 {[%clk 0:02:25.6]} 18. Qa7
{[%clk 0:02:29.6]} 18... Kxf7 {[%clk 0:02:21.2]} 19. Na5 {[%clk 0:02:29.7]}
19... Qa6 {[%clk 0:02:16.4]} 20. c4 {[%clk 0:02:14.6]} 20... Nd7 {[%clk
0:02:10.1]} 21. Nc6 {[%clk 0:02:01.5]} 21... Qxb6 {[%clk 0:02:07.6]} 22. Qa4
{[%clk 0:01:56.4]} 22... Qa6 {[%clk 0:02:02.2]} 23. Qxa6 {[%clk 0:01:54.6]}
23... Bxa6 {[%clk 0:02:02.2]} 24. b3 {[%clk 0:01:55.5]} 24... Bc3+ {[%clk
0:01:59.8]} 25. Ke2 {[%clk 0:01:55.8]} 25... Nb6 {[%clk 0:01:59.5]} 26. Kd3
{[%clk 0:01:55.7]} 26... Nxd5 {[%clk 0:01:58.9]} 27. g3 {[%clk 0:01:54]} 27...
Nf6 {[%clk 0:01:54.9]} 28. h4 {[%clk 0:01:46.4]} 28... Bb7 {[%clk 0:01:54.4]}
0-1

[Event "Early-Titled-Tuesday-Blitz-March-05-2024"]
[Site "Chess.com"]
[Date "2024.03.05"]
[Round "3"]
[White "Sofiia_Hryzlova"]
[Black "ChristianArca"]
[Result "0-1"]
[WhiteElo "2484"]
[BlackElo "2705"]
[TimeControl "180+1"]
[EndTime "8:27:53 PST"]
[Termination "ChristianArca won by resignation"]

1. b3 {[%clk 0:02:59.4]} 1... Nf6 {[%clk 0:02:58.8]} 2. Bb2 {[%clk 0:02:59.7]}
2... g6 {[%clk 0:02:58.3]} 3. f4 {[%clk 0:02:59.9]} 3... Bg7 {[%clk 0:02:58.3]}
4. Nf3 {[%clk 0:03:00.1]} 4... O-O {[%clk 0:02:57.9]} 5. e3 {[%clk 0:03:00.6]}
5... b6 {[%clk 0:02:55]} 6. d4 {[%clk 0:02:59.6]} 6... Bb7 {[%clk 0:02:54.9]} 7.
Bd3 {[%clk 0:02:59.8]} 7... e6 {[%clk 0:02:53.7]} 8. Nbd2 {[%clk 0:02:59.6]}
8... c5 {[%clk 0:02:52.2]} 9. c3 {[%clk 0:02:58.1]} 9... d6 {[%clk 0:02:52.2]}
10. O-O {[%clk 0:02:57.8]} 10... a6 {[%clk 0:02:52.4]} 11. e4 {[%clk 0:02:55.6]}
11... b5 {[%clk 0:02:51.3]} 12. Qe2 {[%clk 0:02:50.7]} 12... Qb6 {[%clk
0:02:51]} 13. Kh1 {[%clk 0:02:49.3]} 13... Nc6 {[%clk 0:02:48.2]} 14. e5 {[%clk
0:02:33.8]} 14... Nd5 {[%clk 0:02:45.7]} 15. c4 {[%clk 0:02:28.7]} 15... Nxf4
{[%clk 0:02:44.2]} 16. Qe3 {[%clk 0:02:24.9]} 16... Nxd3 {[%clk 0:02:43.1]} 17.
Qxd3 {[%clk 0:02:25.2]} 17... cxd4 {[%clk 0:02:36.1]} 18. exd6 {[%clk
0:02:21.6]} 18... e5 {[%clk 0:02:36.4]} 19. Rac1 {[%clk 0:02:15]} 19... f5
{[%clk 0:02:36.8]} 20. c5 {[%clk 0:02:13.5]} 20... Qa5 {[%clk 0:02:36.3]} 21.
Ng5 {[%clk 0:02:10.2]} 21... e4 {[%clk 0:02:32.6]} 22. Qh3 {[%clk 0:01:53.1]}
22... h6 {[%clk 0:02:29.2]} 23. Ne6 {[%clk 0:01:52.4]} 23... Qxd2 {[%clk
0:02:29.3]} 24. Nxf8 {[%clk 0:01:44.8]} 24... Rxf8 {[%clk 0:02:29.7]} 25. Ba1
{[%clk 0:01:43.9]} 25... e3 {[%clk 0:02:21.1]} 26. Rfd1 {[%clk 0:01:39.7]} 26...
Qf2 {[%clk 0:02:19.7]} 27. Qf3 {[%clk 0:01:34.2]} 27... Qxf3 {[%clk 0:02:19.9]}
28. gxf3 {[%clk 0:01:34.7]} 28... e2 {[%clk 0:02:20.8]} 29. Rd3 {[%clk
0:01:31.9]} 29... Ne5 {[%clk 0:02:18.6]} 30. Rxd4 {[%clk 0:01:26]} 30... Nxf3
{[%clk 0:02:18.4]} 0-1